Cogmind - Beta 11.1 @@@ ROGUE MODE // 2022.10.15 @ 15:34:58 Player: Beepinex Result: Destroyed by G-34 Mercenary with Small Laser Performance ------------- Evolutions (0) 0 Regions Visited (4) 800 Robots Destroyed (35) 175 Value Destroyed (760) 760 Prototype IDs (1) 20 Alien Tech Used (0) 0 Bonus (300) 300 TOTAL SCORE: 2055 Bonus ------- Aligned with FarCom 300 Cogmind --------- Core Integrity 0/250 Matter 212/300 Energy 30/100 System Corruption 0% Temperature Cool (32) Movement Core (500) Ox9 Location -9/Mines Parts ------- > --- POWER (1) -------- (None) > --- PROPULSION (2) --- (None) > --- UTILITY (2) ------ Medium Storage Unit Targeting Computer > --- WEAPON (2) ------- YOLO Cannon > --- INVENTORY (10) --- Improved Heat Sink Medium Storage Unit Weight Redist. System Seismic Detector Assault Rifle Peak State ------------ > --- POWER ------------ (None) > --- PROPULSION ------- Aluminum Leg > --- UTILITY ---------- Medium Storage Unit Targeting Computer > --- WEAPON ----------- YOLO Cannon > --- INVENTORY -------- Improved Heat Sink Medium Storage Unit Weight Redist. System Seismic Detector Assault Rifle [Rating: 23] Favorites ----------- Power Ion Engine Engine Ion Engine Propulsion Aluminum Leg Leg Aluminum Leg Utility Medium Storage Unit Device Seismic Detector Storage Medium Storage Unit Processor Targeting Computer Weapon Light Cannon Energy Gun EM Pulse Gun Energy Cannon YOLO Cannon Ballistic Gun Assault Rifle Ballistic Cannon Light Cannon Launcher Grenade Launcher Build | -11 -10 -10 -10 -9 ------- Run | Scr Mat Min Exi Min Slots Evolved . | . . . . . Power . | . . . . . Propulsion . | . . . . . Utility . | . . . . . Weapon . | . . . . . Parts Attached 30 | 8 11 4 . 7 Power 4 | 1 2 . . 1 Engine 4 | 1 2 . . 1 Core . | . . . . . Reactor . | . . . . . Propulsion 10 | 2 6 2 . . Treads . | . . . . . Leg 10 | 2 6 2 . . Wheel . | . . . . . Hover . | . . . . . Flight . | . . . . . Utility 5 | 2 1 2 . . Device 2 | 1 . 1 . . Storage 2 | 1 1 . . . Processor 1 | . . 1 . . Hackware . | . . . . . Protection . | . . . . . Artifact . | . . . . . Weapon 11 | 3 2 . . 6 Energy Gun 2 | 2 . . . . Energy Cannon 2 | . . . . 2 Ballistic Gun 2 | 1 1 . . . Ballistic Cannon 3 | . 1 . . 2 Launcher 2 | . . . . 2 Special Weapon . | . . . . . Impact Weapon . | . . . . . Slashing Weapon . | . . . . . Piercing Weapon . | . . . . . Special Melee Weapon . | . . . . . Unidentified Prototypes 1 | . . . . 1 Parts Lost 9 | . 2 2 . 5 Power 2 | . 1 . . 1 Propulsion 3 | . . 1 . 2 Utility 1 | . . 1 . . Weapon 3 | . 1 . . 2 Highest Loss Streak 3 | . 1 2 . 3 To Critical Strikes . | . . . . . Average Slot Usage (%) 86 | . 95 90 85 74 Engine 13 | . 13 14 14 13 Leg 24 | . 28 28 28 17 Device 6 | . 14 11 . . Storage 14 | . 14 14 14 14 Processor 7 | . . 2 14 14 Energy Gun 1 | . 3 . . . Ballistic Gun 5 | . 13 4 . . Ballistic Cannon 11 | . 8 14 14 12 Naked Turns . | . . . . . Heaviest Build 28 | 15 21 22 18 28 Greatest Support 20 | 20 20 20 20 20 Greatest Overweight (x) 3 | 1 1 1 . 3 Average Overweight (x) . | . . . . . Largest Inventory Capacity 10 | 8 10 10 10 10 Average Capacity 9 | 6 9 10 10 10 Most Carried 10 | 5 10 10 9 9 Average Carried 7 | 3 7 8 7 7 Final Capacity 10 | 8 10 10 10 10 Final Carried 9 | 3 9 7 9 5 Class Distribution -------------------- 100% | Mutant Dominant Class ---------------- Mutant | -10/Materials Mutant | -10/Mines Mutant | -10/Exiles Mutant | -9/Mines Resources | -11 -10 -10 -10 -9 ----------- Run | Scr Mat Min Exi Min Matter Collected 902 | 297 286 72 86 161 Remotely . | . . . . . Salvage Created 944 | 184 567 27 . 166 Parts 78 | 20 39 1 . 18 Haulers Intercepted 2 | . 2 . . . Recyclers Shooed 1 | 1 . . . . Parts Field Recycled . | . . . . . Retrieved Matter . | . . . . . Parts Self-Destructed . | . . . . . Prevented . | . . . . . Kills | -11 -10 -10 -10 -9 ------- Run | Scr Mat Min Exi Min Combat Hostiles Destroyed 27 | . 10 5 . 12 Guns 6 | . 6 . . . Cannons 14 | . 4 5 . 5 AOE 7 | . . . . 7 Classes Destroyed 7 | 2 3 1 . 1 Tunneler 6 | 5 . . . 1 Hauler 2 | . 2 . . . Recycler 2 | 1 1 . . . Watcher 1 | . 1 . . . Swarmer 8 | . . . . 8 Grunt 16 | . 10 2 . 4 Assembled 3 | . . 3 . . Best Kill Streak 4 | 4 4 2 . 4 Combat Bots Only 4 | . 4 2 . 4 Max Kills in Single Turn 2 | 1 1 1 . 2 Gunslinging . | . . . . . Exploded 2 | . . . . 2 Melee . | . . . . . Uniques/NPCs Destroyed . | . . . . . Combat | -11 -10 -10 -10 -9 -------- Run | Scr Mat Min Exi Min Damage Taken 1329 | . 395 356 . 578 Core 258 | . 57 68 . 133 Absorbed by Shields . | . . . . . Regen/Repaired (Parts) 43 | . 43 . . . Core Remaining (%) 100 | 100 . . . . Volleys Fired 138 | 9 53 32 . 44 Largest 2 | 1 2 1 . 1 Hottest 100 | 20 60 35 . 100 Shots Fired 141 | 9 56 32 . 44 Gun 53 | 9 44 . . . Cannon 82 | . 12 32 . 38 Launcher 6 | . . . . 6 Special . | . . . . . Kinetic 130 | 9 53 32 . 36 Thermal 2 | . . . . 2 Explosive 6 | . . . . 6 Electromagnetic 3 | . 3 . . . Robot Hit Streak 11 | 4 11 5 . 6 Robot Miss Streak 3 | 1 3 3 . 2 Penetration Max . | . . . . . Secondary Targets . | . . . . . Shots Hit Robots 94 | 7 41 20 . 26 Core Hits 55 | 7 23 8 . 17 Critical Kills . | . . . . . Critical Parts Destroyed . | . . . . . Critical Strikes 1 | . 1 . . . Blast 1 | . 1 . . . Melee Attacks . | . . . . . Impact . | . . . . . Slashing . | . . . . . Piercing . | . . . . . Sneak Attacks . | . . . . . Combat Hostiles . | . . . . . Follow-up Attacks . | . . . . . Damage Inflicted 2027 | 99 568 347 . 1013 Guns 518 | 99 419 . . . Cannons 1067 | . 149 347 . 571 Explosions 442 | . . . . 442 Melee . | . . . . . Ramming . | . . . . . Kinetic 1464 | 99 568 347 . 450 Thermal 283 | . . . . 283 Explosive 280 | . . . . 280 Electromagnetic . | . . . . . Impact . | . . . . . Slashing . | . . . . . Piercing . | . . . . . Highest Corruption . | . . . . . Average Corruption . | . . . . . Corruption Purged . | . . . . . Corruption Blocked . | . . . . . Overload Shots . | . . . . . Overflow Damage 66 | . . 9 . 57 Projectiles 59 | . . 9 . 50 Explosions 7 | . . . . 7 Melee . | . . . . . Knockbacks 16 | . 1 9 . 6 Impact . | . . . . . Kinetic 16 | . 1 9 . 6 Secondary . | . . . . . Self-Inflicted Damage 101 | . . . . 101 Shots 2 | . . . . 2 Rammed . | . . . . . Targets Rammed . | . . . . . Kicked . | . . . . . Crushed . | . . . . . Highest Temperature 33 | . 30 33 . 33 Average Temperature 13 | . 12 16 . 10 Received Heat Transfer 593 | . 186 182 . 225 Siege Activations . | . . . . . Robots Corrupted . | . . . . . Combat Hostiles . | . . . . . Parts Fried . | . . . . . Impact Corruptions . | . . . . . Robots Melted . | . . . . . Combat Hostiles . | . . . . . Parts Melted . | . . . . . Heat Transferred 240 | . . . . 240 Parts Sabotaged . | . . . . . Parts Stolen . | . . . . . Parts Stripped . | . . . . . Power Chain Reactions . | . . . . . Missiles Intercepted . | . . . . . Alert | -11 -10 -10 -10 -9 ------- Run | Scr Mat Min Exi Min Peak Influence 343 | 30 203 102 . 343 Initial 19 | . 19 17 . . Average 92 | 11 67 40 . 152 Maximum Alert Level 1 | . 1 . . 1 Low Security (%) 87 | 100 90 100 . 78 Level 1 12 | . 9 . . 21 Level 2 . | . . . . . Level 3 . | . . . . . Level 4 . | . . . . . Level 5 . | . . . . . High Security . | . . . . . Max Security . | . . . . . Squads Dispatched 4 | . 4 . . . Investigation 3 | . 3 . . . Extermination . | . . . . . Reinforcement 1 | . 1 . . . Assault . | . . . . . Garrison . | . . . . . Intercept . | . . . . . Searches Triggered . | . . . . . Construction Impeded . | . . . . . Haulers Reinforced . | . . . . . Active Scanning Responses . | . . . . . Cargo Convoy Interrupts . | . . . . . Stealth | -11 -10 -10 -10 -9 --------- Run | Scr Mat Min Exi Min Distress Signals . | . . . . . Communications Jammed . | . . . . . Distress Signals . | . . . . . Times Spotted 30 | . 12 7 . 11 Peak Tracking Total 4 | . 3 2 . 4 Tactical Retreats 1 | . . 1 . . Traps | -11 -10 -10 -10 -9 ------- Run | Scr Mat Min Exi Min Traps Triggered 1 | . 1 . . . Indirectly . | . . . . . Trap Hack Attempts . | . . . . . Triggered . | . . . . . Disarmed . | . . . . . Reprogrammed . | . . . . . Reused . | . . . . . Traps Extracted . | . . . . . Installed . | . . . . . Triggered . | . . . . . Machines | -11 -10 -10 -10 -9 ---------- Run | Scr Mat Min Exi Min Machines Disabled 1 | . 1 . . . Max in Single Turn 1 | . 1 . . . Machines Sabotaged . | . . . . . Garrisons Compromised . | . . . . . Overloaded Fab Kills . | . . . . . Hacking | -11 -10 -10 -10 -9 --------- Run | Scr Mat Min Exi Min Machines Accessed 7 | . 7 . . . Terminals 6 | . 6 . . . Fabricators . | . . . . . Repair Stations 1 | . 1 . . . Recycling Units . | . . . . . Scanalyzers . | . . . . . Garrison Access . | . . . . . Total Hacks 24 | . 24 . . . Successful 9 | . 9 . . . Failed 15 | . 15 . . . Catastrophic 2 | . 2 . . . Database Lockouts . | . . . . . Manual 22 | . 21 . 1 . Terminals 20 | . 20 . . . Fabricators . | . . . . . Repair Stations 4 | . 4 . . . Recycling Units . | . . . . . Scanalyzers . | . . . . . Garrison Access . | . . . . . Terminal Hacks 2 | . 2 . . . Terminal Index 2 | . 2 . . . Fabricator Hacks . | . . . . . Repair Station Hacks 3 | . 3 . . . Scan Component 2 | . 2 . . . Repair 1 | . 1 . . . Recycling Unit Hacks . | . . . . . Scanalyzer . | . . . . . Garrison Access Hacks . | . . . . . Unauthorized Hacks 4 | . 4 . . . Terminals 4 | . 4 . . . Track 1 | . 1 . . . Botnet 3 | . 3 . . . Fabricators . | . . . . . Repair Stations . | . . . . . Recycling Units . | . . . . . Scanalyzers . | . . . . . Garrison Access . | . . . . . Data Cores Recovered . | . . . . . Used . | . . . . . Hacking Detections 7 | . 7 . . . Full Trace Events 5 | . 5 . . . Feedback Events . | . . . . . Feedback Blocked . | . . . . . Robot Schematics Acquired . | . . . . . Robots Built . | . . . . . Authchips . | . . . . . Time . | . . . . . Total Robot Build Rating . | . . . . . Part Schematics Acquired . | . . . . . Parts Built . | . . . . . Authchips . | . . . . . Time . | . . . . . Total Part Build Rating . | . . . . . Parts Repaired 1 | . 1 . . . Time 26 | . 26 . . . Parts Recycled . | . . . . . Recycled Matter . | . . . . . Retrieved Matter . | . . . . . Retrieved Components . | . . . . . Parts Scanalyzed . | . . . . . Part Schematics Acquired . | . . . . . Parts Damaged . | . . . . . Bothacking | -11 -10 -10 -10 -9 ------------ Run | Scr Mat Min Exi Min Used RIF Installer . | . . . . . Robots Hacked . | . . . . . Non-combat . | . . . . . Combat . | . . . . . Robot Hacks Applied . | . . . . . Relay Couplers Released . | . . . . . Fabnet Peak Effective % . | . . . . . Robots Rewired . | . . . . . Allies Hacked . | . . . . . Hacks Repelled . | . . . . . Allies | -11 -10 -10 -10 -9 -------- Run | Scr Mat Min Exi Min Total Allies . | . . . . . Largest Group . | . . . . . Highest-Rated Group . | . . . . . Highest-Rated Ally . | . . . . . Total Orders . | . . . . . Ally Attacks . | . . . . . Total Damage . | . . . . . Kills . | . . . . . Allies Corrupted . | . . . . . Allies Melted . | . . . . . Intel | -11 -10 -10 -10 -9 ------- Run | Scr Mat Min Exi Min Robot Analysis Total . | . . . . . Derelict Logs Recovered 1 | . . . . 1 Drone Launches . | . . . . . Drone Recoveries . | . . . . . Exploration | -11 -10 -10 -10 -9 ------------- Run | Scr Mat Min Exi Min Turns Passed 3166 | 153 1138 290 628 957 Spaces Moved 1773 | 104 542 152 523 452 Core 62 | 56 . . . 6 Treads . | . . . . . Legs 1711 | 48 542 152 523 446 Wheels . | . . . . . Hover . | . . . . . Flight . | . . . . . Fastest Speed 50 | 50 120 120 120 120 Average Speed 145 | 106 163 140 120 163 Slowest Speed 260 | 120 190 190 120 260 Overloaded Moves . | . . . . . Propulsion Burnouts . | . . . . . Robots Hopped . | . . . . . Cave-ins Triggered . | . . . . . Exploration Rate (%) 49 | 4 64 33 88 58 Regions Visited 4 Branch Regions 3 Pre-discovered Areas 1 | . . . . 1 Known Exits Taken . | . . . . . Unknown Exits Taken 4 | 1 1 1 1 . Scrap Searched . | . . . . . Spaces Dug . | . . . . . Terrain Destroyed 92 | . . . . 92 Melee . | . . . . . Projectile 2 | . . . . 2 AOE 90 | . . . . 90 Terrain Rammed . | . . . . . Walls Destroyed . | . . . . . Machines Disabled . | . . . . . Actions | -11 -10 -10 -10 -9 --------- Run | Scr Mat Min Exi Min Total 2218 | 136 743 196 523 620 Wait 233 | 6 105 7 . 115 Move 1769 | 103 541 151 522 452 Hop . | . . . . . Pick Up 32 | 10 21 . 1 . Fast Attach . | . . . . . Attach 15 | 7 3 2 . 3 Detach 2 | . . 1 . 1 Swap 15 | 1 8 2 . 4 Drop 14 | . 12 1 . 1 Fire 138 | 9 53 32 . 44 Melee . | . . . . . Ram . | . . . . . Kick . | . . . . . Crush . | . . . . . Escape Stasis . | . . . . . Rewire . | . . . . . Trap . | . . . . . Miscellaneous . | . . . . . Route ------- -11/Scrapyard -10/Materials (discovered 3 exits: [*Mat] / [*Min x2]) -10/Mines -10/Exiles -9/Mines History --------- Turn | Location | Event 2 | -11/Scrapyard | Met Revision 17 32 | -11/Scrapyard | Discovered new exit (range 15) 154 | -11/Scrapyard | Entered Materials 268 | -10/Materials | Discovered new exit (range 16) 307 | -10/Materials | Build established: Mutant 753 | -10/Materials | Discovered new exit (range 6) 1165 | -10/Materials | Repaired Assault Rifle 1210 | -10/Materials | Discovered new exit (range 6) 1292 | -10/Materials | Entered Mines 1303 | -10/Mines | Assembled infested the area 1308 | -10/Mines | Assisted by a Guerilla fighting off Assembled 1577 | -10/Mines | Deemed a non-threat by the Exiles lab entrance 1577 | -10/Mines | Discovered new exit (range 5) 1582 | -10/Mines | Entered Exiles 1612 | -10/Exiles | Met 8R-AWN 1632 | -10/Exiles | Met EX-HEX 1682 | -10/Exiles | Met EX-DEC 1733 | -10/Exiles | Visited The Gauntlet 1948 | -10/Exiles | Discovered new exit (range 12) 2019 | -10/Exiles | Met EX-BIN 2037 | -10/Exiles | Aligned with FarCom system 2038 | -10/Exiles | Given EX-Vault access code 2090 | -10/Exiles | Opened EX-Vault 2097 | -10/Exiles | Found Prototype Energy Cannon 2126 | -10/Exiles | Warned to stay clear of 0b10 Research branches 2210 | -10/Exiles | Left Exiles lab with YOLO Cannon 2210 | -10/Exiles | Entered Mines 2339 | -9/Mines | A weapon hastily lodged in a ceiling crevice suddenly fell to the ground 2364 | -9/Mines | Received a Rocket Launcher from a helpful Derelict 2517 | -9/Mines | Core integrity fell below 50% 2833 | -9/Mines | Learned location of Storage (-7) 3135 | -9/Mines | Core integrity fell below 20% 3140 | -9/Mines | Identified YOLO Cannon 3167 | -9/Mines | Destroyed by G-34 Mercenary with Small Laser Last Messages --------------- World map updated: -7/Storage. 03070_ Acquired 3 matter. 03094_ Acquired 32 matter. 03096_ Acquired 1 matter. 03098_ Acquired 4 matter. 03111_ C-30 ARC bursts open, deploying its payload. 03111_ G-34 Mercenary unfolds itself. 03124_ G-34 Mercenary knocked back. 03128_ G-47 Trooper knocked back. 03135_ G-34 Mercenary destroyed. 03138_ Ion Engine destroyed. 03140_ Lgt. Cannon destroyed. 03140_ Identified YOLO Cannon. 03141_ Destroyed Aluminum Leg. 03141_ G-47 Trooper destroyed. 03142_ U-05 Engineer builds a Wall. 03149_ Aluminum Leg destroyed. 03152_ U-05 Engineer builds a Wall. 03158_ K-01 Serf collects debris. 03161_ U-05 Engineer builds a Wall. Map ----- +----------------------------------------------------+ | ???# ##?????????????# #?????####????????????????? | | ??# #??????####???# #???## ####?????????????? | | ?# #?????## ##??# #??## ##????????????? | | # #??????# #??#*#?## #????????????? | | #????????# #??#!### #?????????????? | | #????????## #???# #??????????????? | | #?????????# ##???###### ##??????????????? | | ##????????## #???###? ## ##???????????????? | | ##????###### ##???# #"# ##???????????????? | | #?????# #????# %= ##??????????????? | | #?????# ##????# =% ###### #???????? | | #?????## #??????# [ #???????? | | ???????##### ##?????###" #???????? | | ???????????## #????????#g"#### ## ### #???????? | | ???????????## ##???????# #???? #?###???????????? | | ####??????## #???????# #???? #???????????????? | | #??????# ##??????# #???? ???????????????? | | ## #??????# ##?????# #????? ??????????????? | | ?# #??????## #?????# #????? ?????????????? | | ?# #???????# #???### #????? ?? %????????????? | | ?# #?####??# #??## ; ###???????##???????????? | | ## ### ##?# ##??? ; ; #????????????????????? | | ## ## #?# ##???## ; #????????????????????? | | ### #????# ; ; #??????##????????????? | | ## ##?????# ; ;;# #????????????? | | % ########;;@;; #???????????? | | #### % ;# #???????????? | | ## ##### #############???? t #???????????? | | # #???# #???????????????????? #??????????? | | #### #???# #?????????????????????????????????? | | ???# #???#++#?????????????????????????????????? | | ???# ##??## ##????????????????????????????????? | | ???# ###### #????????????????????????????????? | | ???# #?# #????????????????????????????????? | | ???# #?# ##????????????????????????????????? | | #??# #?########?????????????????????????????????? | | #### #??????????????????????????????????????????? | | *| #??????????????????????????????????????????? | | != #??????????????????????????????????????????? | | #######??????????????????????????????????????????? | | ?????????????????????????????????????????????????? | | ?????????????????????????????????????????????????? | | ?????????????????????????????????????????????????? | | ?????????????????????????????????????????????????? | | ?????????????????????????????????????????????????? | | ?????????????????????????????????????????????????? | | ?????????????????????????????????????????????????? | | ?????????????????????????????????????????????????? | | ?????????????????????????????????????????????????? | | ?????????????????????????????????????????????????? | +----------------------------------------------------+ Best States ------------- Heat Dissipation 25 Energy Generation 10 Energy Capacity 250 Matter Stores 300 Matter Capacity 300 Sight Range 16 Terrain Scan Density 10 ECM Strength 1 Evasion (%) 55 Targeting Accuracy 5 Item Schematics ----------------- None Robot Schematics ------------------ None Fabricated ------------ Nothing Alien Tech Used ----------------- None Achievements -------------- Dramatic Entrance Quantum Hacking Challenges ------------ None Game ------ Seed TerrainBattleBoosters Manual? 0 Play Time 00:39:40 Cumulative 20.1 hours Start 2022.10.15 @ 14:52:13 End 2022.10.15 @ 15:34:58 Sessions 1 Manual Loads 0 Difficulty Rogue Special Mode None Game No. 39 Rogue 39 Adventurer 0 Explorer 0 Win Type - Total 0 Types 0/0/0/0/0/0/0/0/0 Lore% 18 Gallery% 20 Achievement% 21 Wizard Run 0 Options --------- ASCII 0 Keyboard 0 Movement Numpad Keybinds 0 Fullscreen 2 Font 18/TerminusBold Map View 76x50 Tactical HUD 1 Map Filters NONE Filters NONE Steam 1 RUN: 721c4058-07ec-4a00-9746-e9a532f5feab